bitfinex/quotes_BTCUSD_20250902
["timestamp","ask_amount","ask_price","bid_price","bid_amount"]
[1756827371068,0.004,111150.0,111140.0,0.45647854]
[1756827371681,0.004,111150.0,111140.0,0.88201866]
[1756827371857,0.004,111150.0,111140.0,0.79647854]
[1756827372244,0.004,111150.0,111140.0,1.19647854]
[1756827372653,0.004,111150.0,111140.0,0.69843854]
[1756827372899,0.60947714,111150.0,111140.0,0.85647854]
[1756827373098,0.60947714,111150.0,111140.0,0.69843854]
[1756827373351,0.60947714,111150.0,111140.0,0.85647854]
[1756827373556,0.004,111150.0,111140.0,0.85647854]
[1756827374077,0.18393702,111150.0,111140.0,0.69843854]
[1756827374272,0.004,111150.0,111140.0,0.85659854]
[1756827374488,0.18393702,111150.0,111140.0,0.69843854]
[1756827374691,0.18393702,111150.0,111140.0,0.85655854]
[1756827374894,0.004,111150.0,111140.0,0.85655854]
[1756827375149,0.18393702,111150.0,111140.0,0.45655854]
[1756827375299,0.004,111150.0,111140.0,0.45655854]
[1756827375921,0.18393702,111150.0,111140.0,0.45655854]
[1756827376716,0.004,111150.0,111140.0,0.45655854]
[1756827377426,0.004,111150.0,111140.0,0.85655854]
[1756827377623,0.18393702,111150.0,111140.0,0.69843854]
[1756827377860,0.18393702,111150.0,111140.0,0.85659854]
[1756827378025,0.004,111150.0,111140.0,0.85659854]
[1756827378410,0.60947714,111150.0,111140.0,0.69843854]
[1756827378614,0.60947714,111150.0,111140.0,0.45655854]
[1756827378814,0.18591702,111150.0,111140.0,0.25253651]
[1756827379139,0.61145714,111150.0,111140.0,0.25253651]
[1756827379545,0.18591702,111150.0,111140.0,0.25253651]
[1756827379824,0.18393702,111150.0,111140.0,0.25557651]
[1756827380027,0.60947714,111150.0,111140.0,0.43552972]
[1756827380229,0.18393702,111150.0,111140.0,0.43552972]
[1756827380437,0.18393702,111150.0,111140.0,0.25252651]
[1756827380438,0.18591702,111150.0,111140.0,0.25252651]
[1756827380615,0.60947714,111150.0,111140.0,0.25557651]
[1756827381025,0.61145714,111150.0,111140.0,0.25288651]
[1756827381223,0.18591702,111150.0,111140.0,0.25288651]
[1756827381424,0.673942,111150.0,111140.0,0.00047052]
[1756827381581,1.016662,111150.0,111140.0,0.15891052]
[1756827382184,1.016662,111150.0,111140.0,0.00047052]
[1756827382384,1.016662,111150.0,111140.0,0.15887052]
[1756827382802,1.016662,111150.0,111140.0,0.00047052]
[1756827383009,1.175062,111150.0,111140.0,0.00047052]
[1756827384028,1.20211556,111150.0,111140.0,0.00047052]
[1756827386234,1.38594754,111150.0,111140.0,0.00047052]
[1756827386440,1.32619723,111150.0,111140.0,0.00047052]
[1756827386713,1.37619723,111150.0,111140.0,0.00047052]
[1756827386896,1.41583186,111150.0,111140.0,0.00047052]
[1756827387118,1.25743186,111150.0,111140.0,0.00047052]
[1756827387288,1.22526618,111150.0,111140.0,0.00047052]
[1756827387484,1.38350618,111150.0,111140.0,0.00047052]
[1756827387901,1.17526618,111150.0,111140.0,0.00047052]
[1756827388046,1.33350618,111150.0,111140.0,0.00047052]
[1756827388809,1.35083949,111150.0,111140.0,0.00047052]
[1756827389061,1.36567186,111150.0,111140.0,0.00047052]
[1756827389272,0.1800018,111110.0,111100.0,0.14003631]
[1756827389479,0.60554192,111110.0,111100.0,0.3454323]
[1756827389738,0.60554192,111110.0,111100.0,0.3474923]
[1756827389967,0.180018,111100.0,111090.0,0.0004]
[1756827390196,0.180018,111100.0,111090.0,0.25047599]
[1756827390424,0.60555812,111100.0,111090.0,0.16062]
[1756827390689,0.60555812,111100.0,111090.0,0.16381077]
[1756827391081,0.94753812,111100.0,111090.0,0.16124077]
[1756827391286,0.94953812,111100.0,111090.0,0.16124077]
[1756827391503,0.94755812,111100.0,111090.0,0.16429077]
[1756827392373,0.522018,111100.0,111090.0,0.16429077]
[1756827392591,0.94755812,111100.0,111090.0,0.16429077]
[1756827392763,0.522018,111100.0,111090.0,0.16429077]
[1756827392969,0.60755812,111100.0,111090.0,0.34432497]
[1756827393169,0.182018,111100.0,111090.0,0.16429077]
[1756827393554,0.60755812,111100.0,111090.0,0.16429077]
[1756827394077,0.182018,111100.0,111090.0,0.16429077]
[1756827394282,0.60755812,111100.0,111090.0,0.16429077]
[1756827394544,0.60953812,111100.0,111090.0,0.16429077]
[1756827394724,0.60755812,111100.0,111090.0,0.16429077]
[1756827395431,0.182018,111100.0,111090.0,0.16417077]
[1756827395657,0.60953812,111100.0,111090.0,0.16417077]
[1756827395853,0.60755812,111100.0,111090.0,0.16417077]
[1756827396025,0.94953812,111100.0,111090.0,0.15922077]
[1756827396207,0.94953812,111100.0,111090.0,0.16128077]
[1756827396406,0.522018,111100.0,111090.0,0.16433077]
[1756827396656,0.94755812,111100.0,111090.0,0.16433077]
[1756827397251,0.182018,111100.0,111090.0,0.16433077]
[1756827397433,0.60755812,111100.0,111090.0,0.16433077]
[1756827397870,0.60755812,111100.0,111090.0,0.16429077]
[1756827398064,0.60954812,111100.0,111090.0,0.16429077]
[1756827398299,0.60954812,111100.0,111090.0,0.15918077]
[1756827398461,0.60954812,111100.0,111090.0,0.16130077]
[1756827398669,0.60954812,111100.0,111090.0,0.16449077]
[1756827398868,0.97886812,111100.0,111090.0,0.00054077]
[1756827399265,0.97616812,111100.0,111090.0,0.00054077]
[1756827399464,1.00323337,111100.0,111090.0,0.00054077]
[1756827399668,1.00223337,111100.0,111090.0,0.00054077]
[1756827400347,0.547638,111100.0,111090.0,0.00585077]
[1756827400549,0.97317812,111100.0,111090.0,0.00585077]
[1756827400723,0.97517812,111100.0,111090.0,0.00054077]
[1756827400935,0.97617812,111100.0,111090.0,0.00266077]
[1756827401357,0.97617812,111100.0,111090.0,0.00054077]
[1756827401782,1.01451298,111100.0,111090.0,0.00054077]
[1756827402805,1.01181298,111100.0,111090.0,0.00054077]
[1756827403011,1.00981298,111100.0,111090.0,0.00054077]
[1756827403246,0.97631812,111100.0,111090.0,0.00054077]
[1756827404377,0.97417812,111100.0,111090.0,0.00266077]
[1756827404585,0.548638,111100.0,111090.0,0.18588497]
[1756827404804,0.208638,111100.0,111090.0,0.00585077]
[1756827405005,0.63417812,111100.0,111090.0,0.00585077]
[1756827405433,0.63615812,111100.0,111090.0,0.00585077]
[1756827405635,0.63615812,111100.0,111090.0,0.16126077]
[1756827405833,0.63417812,111100.0,111090.0,0.16445077]
[1756827409254,0.208638,111100.0,111090.0,0.16445077]
[1756827409454,0.63417812,111100.0,111090.0,0.16445077]
[1756827409628,0.63616812,111100.0,111090.0,0.16445077]
[1756827409835,0.63616812,111100.0,111090.0,0.00266077]
[1756827409997,0.63616812,111100.0,111090.0,0.00054077]
[1756827410197,0.63616812,111100.0,111090.0,0.16118077]
[1756827410822,0.63616812,111100.0,111090.0,0.00266077]
[1756827411026,0.63616812,111100.0,111090.0,0.15906077]
[1756827412328,0.63616812,111100.0,111090.0,0.15894077]
[1756827412746,0.63887812,111100.0,111090.0,0.00054077]
[1756827413928,0.79723812,111100.0,111090.0,0.00054077]
[1756827414316,0.63616812,111100.0,111090.0,0.00054077]
[1756827415061,0.66323305,111100.0,111090.0,0.00054077]
[1756827417101,0.66594305,111100.0,111090.0,0.00054077]
[1756827417496,0.23769293,111100.0,111090.0,0.00054077]
[1756827417917,0.66323305,111100.0,111090.0,0.00054077]
[1756827418102,1.04057791,111100.0,111090.0,0.00054077]
[1756827418983,1.04357791,111100.0,111090.0,0.00054077]
[1756827419212,0.61803779,111100.0,111090.0,0.00054077]
[1756827419410,1.04357791,111100.0,111090.0,0.00054077]
[1756827420413,0.73821293,111100.0,111090.0,0.00054077]
[1756827420586,1.16646305,111100.0,111090.0,0.00054077]
[1756827421022,1.00523305,111100.0,111090.0,0.00266077]
[1756827421227,0.57770293,111100.0,111090.0,0.16461077]
[1756827421435,1.39584539,111100.0,111090.0,0.16461077]
[1756827421642,1.36922539,111100.0,111090.0,0.16461077]
[1756827422067,1.37136539,111100.0,111090.0,0.16142077]
[1756827422471,0.55108293,111100.0,111090.0,0.34464497]
[1756827422672,1.36922539,111100.0,111090.0,0.34464497]
[1756827423058,1.36922539,111100.0,111090.0,0.16461077]
[1756827423410,0.44013616,111100.0,111090.0,0.43656096]
[1756827423640,0.03106493,111100.0,111090.0,0.45749978]
[1756827423854,0.004,111100.0,111090.0,0.45749978]
[1756827424050,0.184018,111100.0,111090.0,0.45761978]
[1756827424356,0.43007463,111100.0,111090.0,0.45761978]
[1756827424554,0.61009263,111100.0,111090.0,0.29873978]
[1756827424757,0.61009263,111100.0,111090.0,0.09776676]
[1756827424963,0.63869263,111100.0,111090.0,0.00054077]
[1756827425189,1.01432749,111100.0,111090.0,0.00054077]
[1756827425388,1.01704749,111100.0,111090.0,0.00054077]
[1756827425836,0.59025286,111100.0,111090.0,0.00054077]
[1756827426030,0.97871263,111100.0,111090.0,0.00585077]
[1756827426727,0.552638,111100.0,111090.0,0.27780096]
[1756827426931,0.97871263,111100.0,111090.0,0.09776676]
[1756827427979,0.006,111100.0,111090.0,0.27780096]
[1756827428203,0.006,111100.0,111090.0,0.29873978]
[1756827428659,0.006,111100.0,111090.0,0.36217978]
[1756827428865,0.006,111100.0,111090.0,1.12825441]
[1756827429270,0.006,111100.0,111090.0,1.52825441]
[1756827429455,0.006,111100.0,111090.0,1.68717441]
[1756827429706,0.002,111100.0,111090.0,1.10217978]
[1756827430036,0.002,111100.0,111090.0,0.92105978]
[1756827430237,0.004,111100.0,111090.0,0.92105978]
[1756827431235,0.005,111100.0,111090.0,0.92105978]
[1756827432633,0.005,111100.0,111090.0,0.76217978]
[1756827432842,0.005,111100.0,111090.0,0.92097978]
[1756827434188,0.005,111100.0,111090.0,1.58399816]
[1756827434341,0.005,111100.0,111090.0,0.92097978]
[1756827435368,0.005,111100.0,111090.0,1.58399816]
[1756827435575,0.005,111100.0,111090.0,0.76217978]
[1756827435748,0.005,111100.0,111090.0,0.92081978]
[1756827436009,0.185018,111100.0,111090.0,0.50208096]
[1756827436130,0.185018,111100.0,111090.0,0.32200676]
[1756827436350,0.87497638,111100.0,111090.0,0.15589676]
[1756827436548,0.87497638,111100.0,111090.0,0.25325676]
[1756827437321,0.87397638,111100.0,111090.0,0.25317676]
[1756827437529,0.87397638,111100.0,111090.0,0.00054077]
[1756827437731,0.87497638,111100.0,111090.0,0.16126077]
[1756827438365,0.87297638,111100.0,111090.0,0.00054077]
[1756827438547,0.87569638,111100.0,111090.0,0.16122077]
[1756827438746,0.87669638,111100.0,111090.0,0.16218077]
[1756827439194,0.87569638,111100.0,111090.0,0.16218077]
[1756827439560,0.87197638,111100.0,111090.0,0.16118077]
[1756827439759,0.87497638,111100.0,111090.0,0.16118077]
[1756827440538,0.87869638,111100.0,111090.0,0.16118077]
[1756827440739,1.21869638,111100.0,111090.0,0.00054077]
[1756827440941,1.25039841,111100.0,111090.0,0.00054077]
[1756827441170,1.21869638,111100.0,111090.0,0.00054077]
[1756827441374,1.37929638,111100.0,111090.0,0.00054077]
[1756827441576,1.37829638,111100.0,111090.0,0.00054077]
[1756827441789,1.37929638,111100.0,111090.0,0.00054077]
[1756827442006,1.21869638,111100.0,111090.0,0.00054077]
[1756827442467,1.37921638,111100.0,111090.0,0.00054077]
[1756827442890,1.21869638,111100.0,111090.0,0.00054077]
[1756827443546,1.37921638,111100.0,111090.0,0.00054077]
[1756827443777,0.552958,111100.0,111090.0,0.00266077]
[1756827443987,0.87400638,111100.0,111090.0,0.00583077]
[1756827444213,0.186018,111100.0,111090.0,0.09774676]
[1756827444431,0.006,111100.0,111090.0,0.09774676]
[1756827444564,0.186018,111100.0,111090.0,0.09774676]
[1756827444796,0.186018,111100.0,111090.0,0.27778096]
[1756827445002,0.006,111100.0,111090.0,0.29871978]
[1756827445199,0.186018,111100.0,111090.0,0.29871978]
[1756827445627,0.006,111100.0,111090.0,0.29871978]
[1756827447200,0.186018,111100.0,111090.0,0.29871978]
[1756827447405,0.186018,111100.0,111090.0,0.11868558]
[1756827447584,0.186018,111100.0,111090.0,0.27916558]
[1756827447840,0.186018,111100.0,111090.0,0.45919978]
[1756827448253,0.006,111100.0,111090.0,0.45919978]
[1756827448855,0.186018,111100.0,111090.0,0.45923978]
[1756827449055,0.186018,111100.0,111090.0,0.11868558]
[1756827449246,0.186018,111100.0,111090.0,0.27916558]
[1756827449453,0.006,111100.0,111090.0,0.45919978]
[1756827449685,0.186018,111100.0,111090.0,0.11868558]
[1756827449838,0.186018,111100.0,111090.0,0.27916558]
[1756827450055,0.186018,111100.0,111090.0,0.11868558]
[1756827450254,0.85100638,111100.0,111090.0,0.11868558]
[1756827450456,0.90303652,111100.0,111090.0,0.09245676]
[1756827450827,0.90303652,111100.0,111090.0,0.25317676]
[1756827450987,0.23804814,111100.0,111090.0,0.25846676]
[1756827451201,0.05803014,111100.0,111090.0,0.25846676]
[1756827451435,0.21307814,111100.0,111090.0,0.27940558]
[1756827451637,0.21307814,111100.0,111090.0,0.45943978]
[1756827452750,0.21307814,111100.0,111090.0,0.27940558]
[1756827453239,0.21307814,111100.0,111090.0,0.27932558]
[1756827454804,0.21504814,111100.0,111090.0,0.09774676]
[1756827455050,0.90303652,111100.0,111090.0,0.25297676]
[1756827455293,0.90303652,111100.0,111090.0,0.09245676]
[1756827455456,0.90575652,111100.0,111090.0,0.00054077]
[1756827455602,0.90575652,111100.0,111090.0,0.16106077]
[1756827456433,0.24001814,111100.0,111090.0,0.16318077]
[1756827456954,0.90303652,111100.0,111090.0,0.16106077]
[1756827457131,0.23804814,111100.0,111090.0,0.16318077]
[1756827457336,0.23804814,111100.0,111090.0,0.16635077]
[1756827457552,0.24001814,111100.0,111090.0,0.16635077]
[1756827457759,0.23804814,111100.0,111090.0,0.16635077]
[1756827457939,0.23804814,111100.0,111090.0,0.25826676]
[1756827458548,0.21307814,111100.0,111090.0,0.25826676]
[1756827458790,0.03306014,111100.0,111090.0,0.45923978]
[1756827458956,0.006,111100.0,111090.0,0.45923978]
[1756827459898,0.006,111100.0,111090.0,0.85923978]
[1756827461208,0.006,111100.0,111090.0,1.86225816]
[1756827462907,0.006,111100.0,111090.0,1.19927978]
[1756827464365,0.006,111100.0,111090.0,1.86229816]
[1756827466300,0.006,111100.0,111090.0,1.19939978]
[1756827466505,0.006,111100.0,111090.0,1.46177978]
[1756827467258,0.006,111100.0,111090.0,1.30121978]
[1756827467491,0.006,111100.0,111090.0,1.46173978]
[1756827467734,0.006,111100.0,111090.0,2.12475816]
[1756827467959,0.006,111100.0,111090.0,1.96423816]
[1756827468152,0.006,111100.0,111090.0,1.30121978]
[1756827468405,0.006,111100.0,111090.0,1.46169978]
[1756827469399,0.006,111100.0,111090.0,1.46161978]
[1756827469946,0.006,111100.0,111090.0,1.30121978]
[1756827470150,0.006,111100.0,111090.0,1.46161978]
[1756827470745,0.006,111100.0,111090.0,2.12463816]
[1756827472219,0.006,111100.0,111090.0,1.96213816]
[1756827472445,0.006,111100.0,111090.0,1.91213816]
[1756827472648,0.002,111100.0,111090.0,1.13871978]
[1756827472851,0.003,111100.0,111090.0,1.19895978]
[1756827473059,0.005,111100.0,111090.0,1.19995978]
[1756827473267,0.003,111100.0,111090.0,1.19895978]
[1756827473466,0.002,111100.0,111090.0,1.19895978]
[1756827473665,0.005,111100.0,111090.0,1.03971978]
[1756827473869,0.005,111100.0,111090.0,1.70273816]
[1756827474199,0.005,111100.0,111090.0,1.86293816]
[1756827474547,0.005,111100.0,111090.0,1.70273816]
[1756827474754,0.005,111100.0,111090.0,1.19983978]
[1756827474953,0.005,111100.0,111090.0,1.19987978]
[1756827475177,0.005,111100.0,111090.0,1.19983978]
[1756827475405,0.003,111100.0,111090.0,1.19983978]
[1756827475834,0.003,111100.0,111090.0,1.03971978]
[1756827475984,0.003,111100.0,111090.0,1.19983978]
[1756827477355,0.003,111100.0,111090.0,1.86285816]
[1756827477951,0.003,111100.0,111090.0,1.19983978]
[1756827479294,0.00501,111100.0,111090.0,0.69442978]
[1756827479540,0.00501,111100.0,111090.0,0.85975978]
[1756827479712,0.003,111100.0,111090.0,0.85975978]
[1756827480126,0.003,111100.0,111090.0,1.52277816]
[1756827480351,0.003,111100.0,111090.0,0.85975978]
[1756827480741,0.003,111100.0,111090.0,1.52277816]
[1756827481157,0.003,111100.0,111090.0,1.86277816]
[1756827481428,0.003,111100.0,111090.0,2.12527816]
[1756827481636,0.003,111100.0,111090.0,2.17527816]
[1756827481837,0.02534,111140.0,111130.0,0.20090822]
[1756827481987,0.02534,111140.0,111130.0,0.52159421]
[1756827482310,0.20727321,111140.0,111130.0,0.17629481]
[1756827482662,0.87301159,111140.0,111130.0,0.33617481]
[1756827483086,0.87648066,111140.0,111130.0,0.33717481]
[1756827483289,0.21546228,111140.0,111130.0,0.33817481]
[1756827483667,0.87848066,111140.0,111130.0,0.33817481]
[1756827484075,0.87848066,111140.0,111130.0,0.09391599]
[1756827484442,0.87848066,111140.0,111130.0,0.25371599]
[1756827484443,0.905532,111140.0,111130.0,0.25371599]
[1756827484645,0.24251362,111140.0,111130.0,0.25371599]
[1756827484788,0.905532,111140.0,111130.0,0.25371599]
[1756827486043,0.24251362,111140.0,111130.0,0.25371599]
[1756827486442,0.905532,111140.0,111130.0,0.25371599]
[1756827486657,0.24251362,111140.0,111130.0,0.25371599]
[1756827487819,0.905532,111140.0,111130.0,0.25371599]
[1756827488142,0.24251362,111140.0,111130.0,0.25371599]
[1756827488559,0.905532,111140.0,111130.0,0.09391599]
[1756827488737,0.905532,111140.0,111130.0,0.16164]
[1756827490705,0.24251362,111140.0,111130.0,0.16164]
[1756827490911,0.23979362,111140.0,111130.0,0.16164]
[1756827491276,0.24251362,111140.0,111130.0,0.16164]
[1756827492217,0.905532,111140.0,111130.0,0.16164]
[1756827492935,0.905532,111140.0,111130.0,0.1614]
[1756827493132,0.24251362,111140.0,111130.0,0.1614]
[1756827493334,0.905532,111140.0,111130.0,0.1614]
[1756827493663,0.66836605,111140.0,111130.0,0.1614]
[1756827494265,0.66564605,111140.0,111130.0,0.1614]
[1756827495067,0.23979362,111140.0,111130.0,0.1614]
[1756827495276,0.23979362,111140.0,111130.0,0.25855599]
[1756827495476,0.23781362,111140.0,111130.0,0.45946421]
[1756827495688,0.00546907,111140.0,111130.0,0.45946421]
[1756827496045,0.18542228,111140.0,111130.0,0.27953481]
[1756827496250,0.63876471,111140.0,111130.0,0.27429481]
[1756827496451,0.63876471,111140.0,111130.0,0.27433481]
[1756827496654,0.63876471,111140.0,111130.0,0.25339599]
[1756827497921,0.21291228,111140.0,111130.0,0.25339599]
[1756827499047,0.63876471,111140.0,111130.0,0.25339599]
[1756827499517,0.63876471,111140.0,111130.0,0.25335599]
[1756827499687,0.63876471,111140.0,111130.0,0.09391599]
[1756827499916,0.64148471,111140.0,111130.0,0.16136]
[1756827500801,0.63876471,111140.0,111130.0,0.16136]
[1756827501159,0.4588115,111140.0,111130.0,0.3413294]
[1756827501362,0.21291228,111140.0,111130.0,0.25851599]
[1756827502051,0.63876471,111140.0,111130.0,0.09391599]
[1756827502218,0.63876471,111140.0,111130.0,0.25323599]
[1756827503165,0.63876471,111140.0,111130.0,0.25523599]
[1756827503370,0.66581624,111140.0,111130.0,0.25847599]
[1756827503571,0.66581624,111140.0,111130.0,0.25323599]
[1756827503777,0.66581624,111140.0,111130.0,0.25523599]
[1756827504089,0.66581624,111140.0,111130.0,0.25323599]
[1756827504783,0.66581624,111140.0,111130.0,0.25523599]
[1756827504985,0.66581624,111140.0,111130.0,0.25847599]
[1756827505187,0.23996381,111140.0,111130.0,0.25847599]
[1756827505502,0.23798381,111140.0,111130.0,0.25847599]
[1756827505737,0.23997381,111140.0,111130.0,0.25847599]
[1756827505941,0.66582624,111140.0,111130.0,0.25847599]
[1756827506221,0.66582624,111140.0,111130.0,0.25747599]
[1756827506914,0.66582624,111140.0,111130.0,0.25223599]
[1756827507522,0.66582624,111140.0,111130.0,0.25423599]
[1756827507942,0.66582624,111140.0,111130.0,0.25747599]
[1756827508126,0.66383624,111140.0,111130.0,0.25747599]
[1756827508324,0.66582624,111140.0,111130.0,0.25423599]
[1756827508714,0.66582624,111140.0,111130.0,0.09291599]
[1756827508941,0.66582624,111140.0,111130.0,0.25187599]
[1756827509819,0.0325206,111140.0,111130.0,0.31954914]
[1756827510039,0.00546907,111140.0,111130.0,0.92537097]
[1756827510258,0.00546907,111140.0,111130.0,0.76641097]
[1756827510485,0.00346907,111140.0,111130.0,0.49855854]
[1756827510757,0.00046907,111140.0,111130.0,0.92441097]
[1756827510934,0.00146907,111140.0,111130.0,0.76641097]
[1756827511279,0.00146907,111140.0,111130.0,0.92537097]
[1756827511649,0.00546907,111140.0,111130.0,1.31800754]
[1756827511856,0.00146907,111140.0,111130.0,1.31700754]
[1756827512135,0.00246907,111140.0,111130.0,1.15111181]
[1756827512355,0.00246907,111140.0,111130.0,0.90147854]
[1756827512567,0.00246907,111140.0,111130.0,1.31003181]
[1756827512990,0.00246907,111140.0,111130.0,1.91682508]
[1756827513202,0.00246907,111140.0,111130.0,2.25682508]
[1756827513580,0.00246907,111140.0,111130.0,1.86518344]
[1756827514400,0.00246907,111140.0,111130.0,1.97416206]
[1756827514661,0.00246907,111140.0,111130.0,1.81524206]
[1756827515013,0.00246907,111140.0,111130.0,1.92400206]
[1756827517534,0.00246907,111140.0,111130.0,2.18638206]
[1756827518279,0.00246907,111140.0,111130.0,1.97774206]
[1756827518493,0.00246907,111140.0,111130.0,2.13634206]
[1756827518641,0.00246907,111140.0,111130.0,2.13638206]
[1756827519843,0.00246907,111140.0,111130.0,1.87384206]
[1756827520485,0.00246907,111140.0,111130.0,1.71524206]
[1756827520663,0.00246907,111140.0,111130.0,1.87384206]
[1756827522150,0.00246907,111140.0,111130.0,1.71524206]
[1756827522352,0.00246907,111140.0,111130.0,1.10833716]
[1756827522524,0.00246907,111140.0,111130.0,1.44833716]
[1756827522730,0.00246907,111140.0,111130.0,1.87380206]
[1756827525235,0.00246907,111140.0,111130.0,1.44833716]
[1756827525442,0.00246907,111140.0,111130.0,1.87380206]
[1756827526687,0.00246907,111140.0,111130.0,1.71524206]
[1756827526981,0.00246907,111140.0,111130.0,1.28977716]
[1756827527201,0.03067907,111140.0,111130.0,1.43391854]
[1756827527485,0.03067907,111140.0,111130.0,1.43889854]
[1756827527637,0.02869907,111140.0,111130.0,1.43889854]
[1756827528527,0.02869907,111140.0,111130.0,1.86436344]
[1756827529029,0.03067907,111140.0,111130.0,1.86436344]
[1756827529239,0.03067907,111140.0,111130.0,1.10302183]
[1756827529872,0.02869907,111140.0,111130.0,1.10800183]
[1756827530073,0.03068907,111140.0,111130.0,1.10502183]
[1756827531155,0.03068907,111140.0,111130.0,1.10800183]
[1756827531437,0.21064228,111140.0,111130.0,0.76481243]
[1756827531648,0.63881718,111140.0,111130.0,0.09491599]
[1756827531857,0.63881718,111140.0,111130.0,0.16116]
[1756827532392,0.63781718,111140.0,111130.0,0.15916]
[1756827532619,0.00046907,111140.0,111130.0,1.20049029]
[1756827532847,0.00046907,111140.0,111130.0,1.22342911]
[1756827532848,0.00146907,111140.0,111130.0,1.22342911]
[1756827533047,0.00246907,111140.0,111130.0,1.22442911]
[1756827533254,0.00146907,111140.0,111130.0,0.79704421]
[1756827533464,0.00046907,111140.0,111130.0,1.61308051]
[1756827533927,0.00146907,111140.0,111130.0,1.61408051]
[1756827534623,0.00246907,111140.0,111130.0,1.61608051]
[1756827534852,0.00146907,111140.0,111130.0,1.61408051]
[1756827535257,0.00246907,111140.0,111130.0,1.61508051]
[1756827535457,0.00246907,111140.0,111130.0,1.2235319]
[1756827535665,0.00446907,111140.0,111130.0,1.2245319]
[1756827535860,0.00446907,111140.0,111130.0,1.26600191]
[1756827536195,0.00446907,111140.0,111130.0,1.66600191]
[1756827536395,0.00446907,111140.0,111130.0,1.50776191]
[1756827536634,0.00446907,111140.0,111130.0,1.66584191]
[1756827538191,0.00446907,111140.0,111130.0,1.24035422]
[1756827538372,0.00446907,111140.0,111130.0,1.66584191]
[1756827538867,0.00446907,111140.0,111130.0,1.50776191]
[1756827539069,0.00446907,111140.0,111130.0,1.66572191]
[1756827540475,0.00446907,111140.0,111130.0,1.24023422]
[1756827540711,0.00446907,111140.0,111130.0,1.66572191]
[1756827540911,0.00446907,111140.0,111130.0,1.50776191]
[1756827541112,0.00446907,111140.0,111130.0,1.66560191]
[1756827541506,0.00446907,111140.0,111130.0,1.50776191]
[1756827541709,0.00446907,111140.0,111130.0,1.66560191]
[1756827542654,0.00446907,111140.0,111130.0,1.24015422]
[1756827542861,0.00446907,111140.0,111130.0,1.66564191]
[1756827543883,1e-08,111140.0,111130.0,1.66564191]
[1756827544093,0.09977631,111180.0,111170.0,0.51990465]
[1756827544294,0.09977631,111180.0,111170.0,1.46172833]
[1756827544499,0.09977631,111180.0,111170.0,1.03624064]
[1756827544628,0.09977631,111180.0,111170.0,1.86172833]
[1756827544844,0.07354631,111200.0,111190.0,0.20081111]
[1756827545020,0.10189699,111200.0,111190.0,0.49058858]
[1756827545381,0.2844731,111200.0,111190.0,0.4505671]
[1756827545553,0.10461699,111200.0,111190.0,0.4505671]
[1756827545768,0.53010468,111200.0,111190.0,0.6927271]
[1756827545971,0.53010468,111200.0,111190.0,0.8504871]
[1756827545972,0.70996079,111200.0,111190.0,0.8504871]
[1756827546137,0.03307068,111200.0,111190.0,0.4514871]
[1756827546338,0.21492679,111200.0,111190.0,0.4534471]
[1756827546576,0.46055837,111200.0,111190.0,0.4534471]
[1756827546729,0.03035068,111200.0,111190.0,0.4524471]
[1756827546932,0.03307068,111200.0,111190.0,0.2947271]
[1756827547356,0.63841448,111200.0,111190.0,0.4524871]
[1756827547564,0.45855837,111200.0,111190.0,0.4524871]
[1756827548023,0.45655837,111200.0,111190.0,0.4504871]
[1756827548389,0.02935068,111200.0,111190.0,0.4514871]
[1756827549372,0.02935068,111200.0,111190.0,0.88230479]
[1756827549373,0.02737068,111200.0,111190.0,0.88230479]
[1756827549928,0.00114068,111200.0,111190.0,0.88230479]
[1756827550131,0.00114068,111200.0,111190.0,0.92186844]
[1756827550340,0.00114068,111200.0,111190.0,1.32186844]
[1756827550590,0.00114068,111200.0,111190.0,0.89626075]
[1756827550800,0.00114068,111200.0,111190.0,0.89622075]
[1756827551673,0.00114068,111200.0,111190.0,1.66170844]
[1756827552306,0.00114068,111200.0,111190.0,1.50410844]
[1756827552499,0.00114068,111200.0,111190.0,1.66166844]
[1756827552930,0.00114068,111200.0,111190.0,1.23618075]
[1756827553150,0.00114068,111200.0,111190.0,1.66166844]
[1756827554508,0.00114068,111200.0,111190.0,1.50410844]
[1756827554677,0.00114068,111200.0,111190.0,1.23610075]
[1756827554915,0.00114068,111200.0,111190.0,1.66158844]
[1756827555310,0.00114068,111200.0,111190.0,1.23610075]
[1756827555493,0.00114068,111200.0,111190.0,1.89766451]
[1756827555696,0.00114068,111200.0,111190.0,1.94766451]
[1756827555866,1e-08,111200.0,111190.0,1.94766451]
[1756827556754,1e-08,111200.0,111190.0,1.79018451]
[1756827557184,1e-08,111200.0,111190.0,1.94750451]
[1756827560817,1e-08,111200.0,111190.0,1.05768193]
[1756827561023,1e-08,111200.0,111190.0,1.21496193]
[1756827561438,1e-08,111200.0,111190.0,1.71924569]
[1756827561621,1e-08,111200.0,111190.0,1.89746451]
[1756827561826,1e-08,111200.0,111190.0,1.07862075]
[1756827562041,1e-08,111200.0,111190.0,1.89746451]
[1756827562239,1e-08,111200.0,111190.0,1.07862075]
[1756827562490,0.02569001,111200.0,111190.0,1.05235193]
[1756827562669,0.02841001,111200.0,111190.0,0.71235193]
[1756827562931,0.20826612,111200.0,111190.0,0.53247964]
[1756827563121,0.86982988,111200.0,111190.0,0.68975964]
[1756827563246,0.20826612,111200.0,111190.0,0.68975964]
[1756827563451,0.86982988,111200.0,111190.0,0.86963193]
[1756827563650,0.86982988,111200.0,111190.0,0.28975964]
[1756827564157,0.20826612,111200.0,111190.0,0.49057075]
[1756827564674,0.02841001,111200.0,111190.0,0.49057075]
[1756827564875,0.20826612,111200.0,111190.0,0.49057075]
[1756827565978,0.02841001,111200.0,111190.0,0.49057075]
[1756827566193,0.02569001,111200.0,111190.0,0.49057075]
[1756827566401,0.20554612,111200.0,111190.0,0.49057075]
[1756827566796,0.02569001,111200.0,111190.0,0.49057075]
[1756827567000,0.02371001,111200.0,111190.0,0.49590075]
[1756827567413,0.02371001,111200.0,111190.0,0.33862075]
[1756827567617,0.02570001,111200.0,111190.0,0.89590075]
[1756827567815,0.02570001,111200.0,111190.0,0.89057075]
[1756827568700,0.02570001,111200.0,111190.0,0.73329075]
[1756827569129,0.20555612,111200.0,111190.0,0.73329075]
[1756827569263,0.86982988,111200.0,111190.0,0.89057075]
[1756827569466,0.20826612,111200.0,111190.0,0.89057075]
[1756827569662,0.02570001,111200.0,111190.0,0.89057075]
[1756827571041,0.02371001,111200.0,111190.0,0.89590075]
[1756827571597,0.02569001,111200.0,111190.0,0.89057075]
[1756827571814,0.86982988,111200.0,111190.0,0.15341846]
[1756827572005,0.86982988,111200.0,111190.0,0.27113481]
[1756827572408,0.86982988,111200.0,111190.0,0.09291599]
[1756827572639,0.86982988,111200.0,111190.0,0.15828]
[1756827572836,0.87871958,111200.0,111190.0,0.001]
[1756827573036,0.87871958,111200.0,111190.0,0.15828]